[Event "*** Qualifier 2: Titled Tuesday 3|2 Blitz"]
[Site "Chess.com"]
[Date "2017.04.11"]
[Round "8"]
[White "MartinMatthiesen"]
[Black "StarkAst"]
[Result "0-1"]
[WhiteElo "2251"]
[BlackElo "2341"]
[TimeControl "180+2"]
[EndTime "14:51:41 PDT"]
[Termination "StarkAst won by resignation"]

1. d4 {[%clk 0:03:02]} 1... d5 {[%clk 0:02:59.1]} 2. c4 {[%clk 0:03:02]} 2... e6
{[%clk 0:03:00.1]} 3. Nc3 {[%clk 0:03:02.3]} 3... c6 {[%clk 0:03:01]} 4. Nf3
{[%clk 0:03:01.7]} 4... Nf6 {[%clk 0:03:01.7]} 5. Bg5 {[%clk 0:03:01.7]} 5...
dxc4 {[%clk 0:03:00.3]} 6. e4 {[%clk 0:03:02.1]} 6... b5 {[%clk 0:03:01.4]} 7.
e5 {[%clk 0:03:02.5]} 7... h6 {[%clk 0:03:02.8]} 8. Bh4 {[%clk 0:03:03.4]} 8...
g5 {[%clk 0:03:04.1]} 9. Nxg5 {[%clk 0:03:04.6]} 9... hxg5 {[%clk 0:03:05.4]}
10. Bxg5 {[%clk 0:03:06.1]} 10... Nbd7 {[%clk 0:03:06.3]} 11. exf6 {[%clk
0:03:07.1]} 11... Bb7 {[%clk 0:03:04.6]} 12. g3 {[%clk 0:03:07.9]} 12... c5
{[%clk 0:03:04.9]} 13. d5 {[%clk 0:03:08.3]} 13... Nb6 {[%clk 0:03:05.9]} 14.
Bg2 {[%clk 0:02:52.5]} 14... Bxd5 {[%clk 0:02:55.7]} 15. Nxd5 {[%clk 0:02:45.3]}
15... Nxd5 {[%clk 0:02:56.4]} 16. O-O {[%clk 0:02:42.9]} 16... Bh6 {[%clk
0:02:53.3]} 17. Qc1 {[%clk 0:02:38.3]} 17... Bxg5 {[%clk 0:02:39.1]} 18. Qxg5
{[%clk 0:02:38.1]} 18... Qd6 {[%clk 0:02:33]} 19. a4 {[%clk 0:02:22.5]} 19... b4
{[%clk 0:02:29.3]} 20. Rac1 {[%clk 0:02:20]} 20... c3 {[%clk 0:02:26.4]} 21.
bxc3 {[%clk 0:02:17]} 21... bxc3 {[%clk 0:02:27.2]} 22. Bxd5 {[%clk 0:01:26.7]}
22... Qxd5 {[%clk 0:02:27.8]} 23. Qg7 {[%clk 0:01:27.1]} 23... Qh5 {[%clk
0:02:16.8]} 24. h4 {[%clk 0:01:21.5]} 24... O-O-O {[%clk 0:02:17.5]} 25. Rxc3
{[%clk 0:01:00.3]} 25... Rdg8 {[%clk 0:02:10.3]} 26. Rxc5+ {[%clk 0:01:00.5]}
26... Qxc5 {[%clk 0:02:03.6]} 27. Qxf7 {[%clk 0:01:02]} 27... Rxg3+ {[%clk
0:01:50.9]} 28. Kh2 {[%clk 0:00:59.3]} 28... Rxh4+ {[%clk 0:01:46.7]} 29. Kxg3
{[%clk 0:00:58.5]} 29... Qg5+ {[%clk 0:01:47.6]} 30. Kf3 {[%clk 0:00:59.6]}
30... Rf4+ {[%clk 0:01:38.8]} 31. Ke2 {[%clk 0:01:00.2]} 31... Qe5+ {[%clk
0:01:38.9]} 32. Kd3 {[%clk 0:00:59.7]} 32... Rd4+ {[%clk 0:01:39.1]} 33. Kc2
{[%clk 0:01:00.8]} 33... Qc5+ {[%clk 0:01:39.4]} 34. Kb3 {[%clk 0:01:01.6]}
34... Rb4+ {[%clk 0:01:39.5]} 35. Ka3 {[%clk 0:01:02.3]} 35... Qc3+ {[%clk
0:01:40.2]} 0-1

[Event "*** Qualifier 2: Titled Tuesday 3|2 Blitz"]
[Site "Chess.com"]
[Date "2017.04.11"]
[Round "8"]
[White "PowerThinking2650"]
[Black "XiaoKangZhong"]
[Result "1-0"]
[WhiteElo "2194"]
[BlackElo "1934"]
[TimeControl "180+2"]
[EndTime "14:51:53 PDT"]
[Termination "PowerThinking2650 won by checkmate"]

1. e4 {[%clk 0:03:02]} 1... c5 {[%clk 0:02:59.9]} 2. Nf3 {[%clk 0:03:01.7]} 2...
d6 {[%clk 0:03:00]} 3. d4 {[%clk 0:03:01.5]} 3... cxd4 {[%clk 0:03:01.1]} 4.
Nxd4 {[%clk 0:03:03]} 4... Nf6 {[%clk 0:03:02.7]} 5. Nc3 {[%clk 0:03:04.1]} 5...
a6 {[%clk 0:03:04.4]} 6. Be3 {[%clk 0:03:03.6]} 6... e6 {[%clk 0:03:05]} 7. f3
{[%clk 0:03:02.9]} 7... b5 {[%clk 0:03:04.7]} 8. Qd2 {[%clk 0:03:04.4]} 8... Bb7
{[%clk 0:03:05.2]} 9. O-O-O {[%clk 0:03:01.5]} 9... Nbd7 {[%clk 0:03:05.8]} 10.
g4 {[%clk 0:03:01.9]} 10... Nb6 {[%clk 0:03:06.5]} 11. g5 {[%clk 0:03:02.5]}
11... Nfd7 {[%clk 0:03:06.9]} 12. a3 {[%clk 0:02:59.9]} 12... Ne5 {[%clk
0:03:06.3]} 13. f4 {[%clk 0:02:59.8]} 13... Nec4 {[%clk 0:03:06.8]} 14. Bxc4
{[%clk 0:03:01]} 14... Nxc4 {[%clk 0:03:07.7]} 15. Qd3 {[%clk 0:03:02.6]} 15...
Nxe3 {[%clk 0:03:08.5]} 16. Qxe3 {[%clk 0:03:03.5]} 16... Be7 {[%clk 0:03:07.6]}
17. h4 {[%clk 0:03:02.7]} 17... Rc8 {[%clk 0:03:04.3]} 18. h5 {[%clk 0:02:47.9]}
18... e5 {[%clk 0:02:58.5]} 19. Nf5 {[%clk 0:02:47.3]} 19... exf4 {[%clk
0:02:55.6]} 20. Qd4 {[%clk 0:02:39.8]} 20... Bxg5 {[%clk 0:02:44.6]} 21. Qxg7
{[%clk 0:02:32.6]} 21... Bf6 {[%clk 0:02:34.1]} 22. Nxd6+ {[%clk 0:02:10.2]}
22... Qxd6 {[%clk 0:02:29.6]} 23. Qxh8+ {[%clk 0:02:11.1]} 23... Bxh8 {[%clk
0:02:29.9]} 24. Rxd6 {[%clk 0:02:11.7]} 24... Bxc3 {[%clk 0:02:25.9]} 25. bxc3
{[%clk 0:02:12.9]} 25... Rxc3 {[%clk 0:02:27.4]} 26. Re1 {[%clk 0:01:55.1]}
26... Re3 {[%clk 0:02:22.8]} 27. Rxe3 {[%clk 0:01:48]} 27... fxe3 {[%clk
0:02:22.9]} 28. e5 {[%clk 0:01:43.6]} 28... Bf3 {[%clk 0:02:14.6]} 29. h6 {[%clk
0:01:44.7]} 29... Bb7 {[%clk 0:02:13.1]} 30. c3 {[%clk 0:01:44.2]} 30... Ke7
{[%clk 0:02:12.7]} 31. Kd1 {[%clk 0:01:43.4]} 31... Bf3+ {[%clk 0:02:12.9]} 32.
Ke1 {[%clk 0:01:44.3]} 32... a5 {[%clk 0:02:12.1]} 33. Rb6 {[%clk 0:01:37.1]}
33... a4 {[%clk 0:02:09.4]} 34. Rxb5 {[%clk 0:01:30.2]} 34... Ke6 {[%clk
0:02:09.9]} 35. Rb4 {[%clk 0:01:25.9]} 35... Kxe5 {[%clk 0:02:09.2]} 36. Rxa4
{[%clk 0:01:25.7]} 36... f5 {[%clk 0:02:10]} 37. Ra7 {[%clk 0:01:13.6]} 37... f4
{[%clk 0:02:09.3]} 38. Rxh7 {[%clk 0:01:14.1]} 38... Be4 {[%clk 0:02:09.5]} 39.
Rf7 {[%clk 0:01:10.2]} 39... f3 {[%clk 0:02:07.1]} 40. Rxf3 {[%clk 0:01:07.7]}
40... Bxf3 {[%clk 0:02:06.4]} 41. h7 {[%clk 0:01:08.6]} 41... Be4 {[%clk
0:02:06.9]} 42. h8=Q+ {[%clk 0:01:09.6]} 42... Kd5 {[%clk 0:02:07.5]} 43. Qd4+
{[%clk 0:01:10.1]} 43... Kc6 {[%clk 0:02:06.6]} 44. Qxe4+ {[%clk 0:01:10.9]}
44... Kb5 {[%clk 0:02:08.2]} 45. Qd4 {[%clk 0:01:10.2]} 45... Ka5 {[%clk
0:02:08.5]} 46. Qb4+ {[%clk 0:01:11]} 46... Ka6 {[%clk 0:02:09.4]} 47. c4 {[%clk
0:01:12.4]} 47... Ka7 {[%clk 0:02:10.2]} 48. c5 {[%clk 0:01:13.7]} 48... Ka6
{[%clk 0:02:11.2]} 49. Qb6# {[%clk 0:01:14.3]} 1-0

[Event "*** Qualifier 2: Titled Tuesday 3|2 Blitz"]
[Site "Chess.com"]
[Date "2017.04.11"]
[Round "8"]
[White "GamayevOleg"]
[Black "TheNextLevelFan"]
[Result "1-0"]
[WhiteElo "2400"]
[BlackElo "2377"]
[TimeControl "180+2"]
[EndTime "14:52:09 PDT"]
[Termination "GamayevOleg won by resignation"]

1. d3 {[%clk 0:03:01.9]} 1... d5 {[%clk 0:03:00.2]} 2. e4 {[%clk 0:03:03.8]}
2... dxe4 {[%clk 0:03:00.7]} 3. dxe4 {[%clk 0:03:05.4]} 3... Qxd1+ {[%clk
0:03:02.6]} 4. Kxd1 {[%clk 0:03:07.3]} 4... Nc6 {[%clk 0:02:58.6]} 5. Nf3 {[%clk
0:03:08.4]} 5... Bg4 {[%clk 0:02:58.8]} 6. Be2 {[%clk 0:03:09.8]} 6... O-O-O+
{[%clk 0:02:59.1]} 7. Nfd2 {[%clk 0:03:11.4]} 7... Nf6 {[%clk 0:02:53]} 8. f3
{[%clk 0:03:12]} 8... Be6 {[%clk 0:02:47]} 9. c3 {[%clk 0:03:13.9]} 9... h5
{[%clk 0:02:42.4]} 10. Kc2 {[%clk 0:03:14.9]} 10... h4 {[%clk 0:02:43.2]} 11.
Bc4 {[%clk 0:03:15.7]} 11... Bxc4 {[%clk 0:02:37.7]} 12. Nxc4 {[%clk 0:03:17.6]}
12... Rh5 {[%clk 0:02:30.8]} 13. a4 {[%clk 0:03:15.5]} 13... e6 {[%clk
0:02:20.6]} 14. Be3 {[%clk 0:03:14.6]} 14... a6 {[%clk 0:02:12.5]} 15. Nbd2
{[%clk 0:03:14.8]} 15... Nd7 {[%clk 0:01:54.8]} 16. b4 {[%clk 0:03:10]} 16...
Be7 {[%clk 0:01:28.4]} 17. Rhd1 {[%clk 0:03:05]} 17... Nce5 {[%clk 0:01:28.5]}
18. Bf4 {[%clk 0:02:56.6]} 18... Ng6 {[%clk 0:01:24.4]} 19. Be3 {[%clk
0:02:55.7]} 19... Bg5 {[%clk 0:01:25.3]} 20. Rg1 {[%clk 0:02:48.4]} 20... Bxe3
{[%clk 0:01:24.6]} 21. Nxe3 {[%clk 0:02:50.3]} 21... Nde5 {[%clk 0:01:24]} 22.
Ndc4 {[%clk 0:02:49.8]} 22... h3 {[%clk 0:01:04.3]} 23. Nxe5 {[%clk 0:02:48.1]}
23... Nxe5 {[%clk 0:01:02.5]} 24. f4 {[%clk 0:02:49.1]} 24... Ng6 {[%clk
0:01:01.4]} 25. g3 {[%clk 0:02:49.3]} 25... Ne7 {[%clk 0:00:54.8]} 26. Rad1
{[%clk 0:02:47.6]} 26... Rxd1 {[%clk 0:00:54.9]} 27. Rxd1 {[%clk 0:02:49.5]}
27... g5 {[%clk 0:00:56.6]} 28. f5 {[%clk 0:02:43.1]} 28... exf5 {[%clk
0:00:46.8]} 29. exf5 {[%clk 0:02:45]} 29... f6 {[%clk 0:00:47.9]} 30. Rf1 {[%clk
0:02:27.7]} 30... Rh8 {[%clk 0:00:46.1]} 31. Ng4 {[%clk 0:02:28.3]} 31... Rf8
{[%clk 0:00:36.1]} 32. Kd3 {[%clk 0:02:25.2]} 32... Kd7 {[%clk 0:00:36.8]} 33.
Ke4 {[%clk 0:02:25.8]} 33... Nc6 {[%clk 0:00:36.9]} 34. Rd1+ {[%clk 0:02:26.5]}
34... Ke7 {[%clk 0:00:38.2]} 35. b5 {[%clk 0:02:27.6]} 35... axb5 {[%clk
0:00:38.2]} 36. axb5 {[%clk 0:02:29.5]} 36... Na5 {[%clk 0:00:39.8]} 37. Ne3
{[%clk 0:02:24.3]} 37... b6 {[%clk 0:00:38.6]} 38. Kf3 {[%clk 0:02:24.7]} 38...
Nb7 {[%clk 0:00:34]} 39. Nd5+ {[%clk 0:02:25.1]} 39... Kd6 {[%clk 0:00:29.3]}
40. Nxb6+ {[%clk 0:02:22.2]} 40... Ke7 {[%clk 0:00:21.6]} 41. Rd7+ {[%clk
0:02:23]} 1-0

[Event "*** Qualifier 2: Titled Tuesday 3|2 Blitz"]
[Site "Chess.com"]
[Date "2017.04.11"]
[Round "8"]
[White "ruvat"]
[Black "woodhy"]
[Result "1-0"]
[WhiteElo "2230"]
[BlackElo "2130"]
[TimeControl "180+2"]
[EndTime "14:52:15 PDT"]
[Termination "ruvat won by resignation"]

1. d4 {[%clk 0:03:00.1]} 1... Nf6 {[%clk 0:03:00.6]} 2. c4 {[%clk 0:03:01.1]}
2... e6 {[%clk 0:03:01.2]} 3. g3 {[%clk 0:03:01.6]} 3... Bb4+ {[%clk 0:02:59.9]}
4. Bd2 {[%clk 0:03:01.8]} 4... Qe7 {[%clk 0:02:59.4]} 5. Nf3 {[%clk 0:03:02]}
5... O-O {[%clk 0:02:59.9]} 6. Bg2 {[%clk 0:03:02]} 6... d5 {[%clk 0:02:58.7]}
7. Qc2 {[%clk 0:03:02.1]} 7... b6 {[%clk 0:02:53.9]} 8. a3 {[%clk 0:02:58.1]}
8... Bxd2+ {[%clk 0:02:54.4]} 9. Nbxd2 {[%clk 0:02:56.8]} 9... Bb7 {[%clk
0:02:56.3]} 10. O-O {[%clk 0:02:44.2]} 10... Nbd7 {[%clk 0:02:57.4]} 11. b4
{[%clk 0:02:41.1]} 11... c5 {[%clk 0:02:34.5]} 12. bxc5 {[%clk 0:02:38.9]} 12...
bxc5 {[%clk 0:02:36.4]} 13. Rab1 {[%clk 0:02:38.4]} 13... Nb6 {[%clk 0:02:32.8]}
14. cxd5 {[%clk 0:02:32]} 14... cxd4 {[%clk 0:02:32.9]} 15. dxe6 {[%clk
0:02:23.9]} 15... fxe6 {[%clk 0:02:19.1]} 16. Nxd4 {[%clk 0:02:23]} 16... Bxg2
{[%clk 0:02:21]} 17. Kxg2 {[%clk 0:02:18.7]} 17... Qxa3 {[%clk 0:02:20.3]} 18.
Nxe6 {[%clk 0:02:16.4]} 18... Rfe8 {[%clk 0:02:13]} 19. Nd4 {[%clk 0:02:07]}
19... Qd6 {[%clk 0:02:06.1]} 20. Qb3+ {[%clk 0:02:02.5]} 20... Kh8 {[%clk
0:02:03.8]} 21. e3 {[%clk 0:02:03.4]} 21... Ng4 {[%clk 0:01:51]} 22. N2f3 {[%clk
0:01:33.8]} 22... Nd5 {[%clk 0:01:45.5]} 23. Nf5 {[%clk 0:01:20.6]} 23... Qe6
{[%clk 0:01:25.6]} 24. N3d4 {[%clk 0:01:20.6]} 24... Qe4+ {[%clk 0:01:22.5]} 25.
Kg1 {[%clk 0:01:21.2]} 25... Ne5 {[%clk 0:01:10.3]} 26. Nd6 {[%clk 0:01:17.9]}
26... Qg4 {[%clk 0:00:22.3]} 27. Qxd5 {[%clk 0:01:05.7]} 1-0

[Event "*** Qualifier 2: Titled Tuesday 3|2 Blitz"]
[Site "Chess.com"]
[Date "2017.04.11"]
[Round "8"]
[White "nickmatta"]
[Black "Aragon"]
[Result "1-0"]
[WhiteElo "2287"]
[BlackElo "2101"]
[TimeControl "180+2"]
[EndTime "14:52:17 PDT"]
[Termination "nickmatta won by checkmate"]

1. d4 {[%clk 0:03:02]} 1... d5 {[%clk 0:03:00]} 2. c4 {[%clk 0:03:02.9]} 2... e6
{[%clk 0:03:01.6]} 3. Nf3 {[%clk 0:03:03.6]} 3... c6 {[%clk 0:03:03.1]} 4. Qc2
{[%clk 0:03:03.2]} 4... dxc4 {[%clk 0:03:03.4]} 5. Qxc4 {[%clk 0:03:03.8]} 5...
b5 {[%clk 0:03:05]} 6. Qc2 {[%clk 0:03:04.9]} 6... Bb7 {[%clk 0:03:06.6]} 7. g3
{[%clk 0:03:04.8]} 7... a6 {[%clk 0:03:07.8]} 8. Bg2 {[%clk 0:03:05.6]} 8... Nd7
{[%clk 0:03:08.2]} 9. O-O {[%clk 0:03:02.6]} 9... c5 {[%clk 0:03:08.8]} 10. Rd1
{[%clk 0:03:02.4]} 10... c4 {[%clk 0:03:08.9]} 11. a4 {[%clk 0:03:00.8]} 11...
Ngf6 {[%clk 0:03:08.7]} 12. axb5 {[%clk 0:02:46.2]} 12... axb5 {[%clk
0:03:10.6]} 13. Rxa8 {[%clk 0:02:47.6]} 13... Qxa8 {[%clk 0:03:07.5]} 14. Nc3
{[%clk 0:02:48.9]} 14... Bc6 {[%clk 0:02:51.9]} 15. d5 {[%clk 0:02:35.5]} 15...
exd5 {[%clk 0:02:31.9]} 16. Nd4 {[%clk 0:02:36.2]} 16... Be7 {[%clk 0:01:59.8]}
17. Nxc6 {[%clk 0:02:32.3]} 17... Qxc6 {[%clk 0:01:58.2]} 18. Nxd5 {[%clk
0:02:33.5]} 18... Nxd5 {[%clk 0:01:56.4]} 19. Bxd5 {[%clk 0:02:26.9]} 19... Qc8
{[%clk 0:01:23.7]} 20. Qe4 {[%clk 0:02:20]} 20... Nf6 {[%clk 0:01:19.4]} 21.
Bc6+ {[%clk 0:02:16.4]} 21... Kf8 {[%clk 0:01:20.2]} 22. Qf3 {[%clk 0:02:17.8]}
22... b4 {[%clk 0:01:13.8]} 23. Bb7 {[%clk 0:02:14.5]} 23... Qe6 {[%clk
0:01:07.6]} 24. Bf4 {[%clk 0:02:01.6]} 24... h5 {[%clk 0:01:00.1]} 25. Ra1
{[%clk 0:01:06.5]} 25... Kg8 {[%clk 0:00:52.8]} 26. Ra6 {[%clk 0:01:02.7]} 26...
Qd7 {[%clk 0:00:35]} 27. Ra8+ {[%clk 0:01:00.7]} 27... Kh7 {[%clk 0:00:29.9]}
28. Be4+ {[%clk 0:01:00.3]} 28... Nxe4 {[%clk 0:00:28.8]} 29. Qxh5# {[%clk
0:01:01.1]} 1-0

[Event "*** Qualifier 2: Titled Tuesday 3|2 Blitz"]
[Site "Chess.com"]
[Date "2017.04.11"]
[Round "8"]
[White "pastouche06"]
[Black "alturas_pacificas"]
[Result "0-1"]
[WhiteElo "2295"]
[BlackElo "2153"]
[TimeControl "180+2"]
[EndTime "14:52:22 PDT"]
[Termination "alturas_pacificas won by resignation"]

1. c4 {[%clk 0:03:02]} 1... c6 {[%clk 0:03:00.7]} 2. Nf3 {[%clk 0:03:01.8]} 2...
d5 {[%clk 0:03:02]} 3. d4 {[%clk 0:03:02.8]} 3... Nf6 {[%clk 0:03:02.3]} 4. e3
{[%clk 0:03:03.9]} 4... e6 {[%clk 0:03:02.8]} 5. b3 {[%clk 0:03:04.4]} 5... Nbd7
{[%clk 0:02:59.1]} 6. Bb2 {[%clk 0:03:03.3]} 6... Bb4+ {[%clk 0:02:59.7]} 7.
Nbd2 {[%clk 0:03:04.3]} 7... Ne4 {[%clk 0:02:54.9]} 8. Bd3 {[%clk 0:03:05.3]}
8... Ndf6 {[%clk 0:02:49.5]} 9. O-O {[%clk 0:02:54.9]} 9... O-O {[%clk
0:02:44.4]} 10. Qc2 {[%clk 0:02:49.1]} 10... Nxd2 {[%clk 0:02:37.1]} 11. Nxd2
{[%clk 0:02:51]} 11... h6 {[%clk 0:02:29]} 12. a3 {[%clk 0:02:47.5]} 12... Be7
{[%clk 0:02:26.8]} 13. f3 {[%clk 0:02:47.3]} 13... c5 {[%clk 0:02:18.9]} 14.
Rae1 {[%clk 0:02:44.7]} 14... dxc4 {[%clk 0:02:17.3]} 15. Nxc4 {[%clk
0:02:44.5]} 15... b6 {[%clk 0:02:14.4]} 16. dxc5 {[%clk 0:02:42.7]} 16... Bxc5
{[%clk 0:02:13]} 17. b4 {[%clk 0:02:43.8]} 17... Be7 {[%clk 0:02:11.5]} 18. e4
{[%clk 0:02:43.9]} 18... Bb7 {[%clk 0:02:06.9]} 19. Qe2 {[%clk 0:02:35.6]} 19...
Rc8 {[%clk 0:02:03.7]} 20. Rd1 {[%clk 0:02:29.3]} 20... Qe8 {[%clk 0:01:55]} 21.
e5 {[%clk 0:02:26.3]} 21... Nd5 {[%clk 0:01:53.3]} 22. Qe4 {[%clk 0:02:24.9]}
22... g6 {[%clk 0:01:45.6]} 23. Nd6 {[%clk 0:02:23.4]} 23... Qd7 {[%clk
0:01:24.6]} 24. Nxc8 {[%clk 0:02:04.5]} 24... Rxc8 {[%clk 0:01:22]} 25. Qd4
{[%clk 0:01:41.5]} 25... Qa4 {[%clk 0:01:10.7]} 26. Rc1 {[%clk 0:01:24.7]} 26...
Rxc1 {[%clk 0:01:06.5]} 27. Rxc1 {[%clk 0:01:24.9]} 27... Bg5 {[%clk 0:01:07.9]}
28. Re1 {[%clk 0:01:19.8]} 28... Qb3 {[%clk 0:00:57.9]} 29. Bc1 {[%clk
0:01:00.4]} 29... Bxc1 {[%clk 0:00:50.4]} 30. Rxc1 {[%clk 0:01:02.3]} 30... Qxa3
{[%clk 0:00:51.2]} 31. b5 {[%clk 0:00:57.3]} 31... Qxc1+ {[%clk 0:00:49.9]} 0-1

[Event "*** Qualifier 2: Titled Tuesday 3|2 Blitz"]
[Site "Chess.com"]
[Date "2017.04.11"]
[Round "8"]
[White "MITerryble"]
[Black "Iball95"]
[Result "1-0"]
[WhiteElo "2647"]
[BlackElo "2539"]
[TimeControl "180+2"]
[EndTime "14:52:57 PDT"]
[Termination "MITerryble won by resignation"]

1. d4 {[%clk 0:03:01.1]} 1... Nf6 {[%clk 0:03:01.4]} 2. Nf3 {[%clk 0:03:02.4]}
2... e6 {[%clk 0:03:02.6]} 3. c4 {[%clk 0:03:03.2]} 3... c5 {[%clk 0:02:54.9]}
4. g3 {[%clk 0:03:04]} 4... cxd4 {[%clk 0:02:55.4]} 5. Nxd4 {[%clk 0:03:05.9]}
5... d5 {[%clk 0:02:57.1]} 6. Bg2 {[%clk 0:03:05.5]} 6... e5 {[%clk 0:02:57.8]}
7. Nf3 {[%clk 0:03:06.2]} 7... d4 {[%clk 0:02:59.2]} 8. O-O {[%clk 0:03:06.7]}
8... Nc6 {[%clk 0:03:00.3]} 9. e3 {[%clk 0:03:08.2]} 9... Bc5 {[%clk 0:02:58.9]}
10. exd4 {[%clk 0:03:03.9]} 10... exd4 {[%clk 0:02:59]} 11. Re1+ {[%clk
0:03:03.3]} 11... Be6 {[%clk 0:02:59.6]} 12. Ng5 {[%clk 0:03:04.6]} 12... O-O
{[%clk 0:03:00.2]} 13. Nxe6 {[%clk 0:02:29.6]} 13... fxe6 {[%clk 0:03:02.1]} 14.
Nd2 {[%clk 0:02:31.2]} 14... d3 {[%clk 0:02:07.8]} 15. Nb3 {[%clk 0:02:31]}
15... Bd4 {[%clk 0:01:22.8]} 16. Rxe6 {[%clk 0:02:18.8]} 16... Bxf2+ {[%clk
0:00:27.3]} 17. Kxf2 {[%clk 0:02:18.3]} 17... Nd4 {[%clk 0:00:19.3]} 18. Re3
{[%clk 0:01:31.1]} 18... Ng4+ {[%clk 0:00:17.8]} 19. Kg1 {[%clk 0:01:32.2]}
19... Ne2+ {[%clk 0:00:18.6]} 20. Rxe2 {[%clk 0:01:32.3]} 20... dxe2 {[%clk
0:00:19.7]} 21. Qxe2 {[%clk 0:01:34.2]} 21... Qf6 {[%clk 0:00:09.3]} 22. Bf4
{[%clk 0:01:31.8]} 22... Nh6 {[%clk 0:00:10.1]} 23. Re1 {[%clk 0:01:27.9]} 23...
Rad8 {[%clk 0:00:09.8]} 24. Bd5+ {[%clk 0:01:20.9]} 24... Kh8 {[%clk 0:00:10.7]}
25. Nc5 {[%clk 0:01:22.4]} 25... Nf5 {[%clk 0:00:07.8]} 26. Ne6 {[%clk
0:01:21.5]} 26... Rde8 {[%clk 0:00:08.1]} 27. Qe5 {[%clk 0:01:20.7]} 27... Qg6
{[%clk 0:00:08.3]} 28. Nxf8 {[%clk 0:01:20.9]} 28... Rxf8 {[%clk 0:00:08.5]} 29.
c5 {[%clk 0:01:18.7]} 29... h5 {[%clk 0:00:09.2]} 30. Bxb7 {[%clk 0:01:18.7]}
30... Nh4 {[%clk 0:00:08.7]} 31. Be4 {[%clk 0:01:18]} 31... Rf5 {[%clk
0:00:08.3]} 32. Bxf5 {[%clk 0:01:18.1]} 32... Nf3+ {[%clk 0:00:09]} 33. Kf2
{[%clk 0:01:19.1]} 33... Qc6 {[%clk 0:00:06.2]} 34. Qb8+ {[%clk 0:01:18.5]} 1-0

[Event "*** Qualifier 2: Titled Tuesday 3|2 Blitz"]
[Site "Chess.com"]
[Date "2017.04.11"]
[Round "8"]
[White "Saitama_Hero"]
[Black "Winehouse83"]
[Result "0-1"]
[WhiteElo "2180"]
[BlackElo "2322"]
[TimeControl "180+2"]
[EndTime "14:53:27 PDT"]
[Termination "Winehouse83 won by resignation"]

1. d4 {[%clk 0:03:02]} 1... Nf6 {[%clk 0:02:59.6]} 2. c4 {[%clk 0:03:03.4]} 2...
g6 {[%clk 0:02:55.6]} 3. Nc3 {[%clk 0:03:00.9]} 3... Bg7 {[%clk 0:02:56.9]} 4.
e4 {[%clk 0:03:00.9]} 4... d6 {[%clk 0:02:58.5]} 5. Nf3 {[%clk 0:03:01.5]} 5...
O-O {[%clk 0:02:58.9]} 6. Be2 {[%clk 0:03:02.9]} 6... e5 {[%clk 0:02:58.2]} 7.
O-O {[%clk 0:03:04.4]} 7... Nc6 {[%clk 0:02:59.1]} 8. d5 {[%clk 0:03:04.6]} 8...
Ne7 {[%clk 0:02:59.3]} 9. b4 {[%clk 0:03:06]} 9... a5 {[%clk 0:02:52.4]} 10.
bxa5 {[%clk 0:03:05.1]} 10... Nd7 {[%clk 0:02:52.1]} 11. a4 {[%clk 0:03:01.8]}
11... Rxa5 {[%clk 0:02:43]} 12. Ba3 {[%clk 0:03:00.8]} 12... h6 {[%clk
0:02:38.9]} 13. Bb4 {[%clk 0:02:59.9]} 13... Ra8 {[%clk 0:02:39.6]} 14. a5
{[%clk 0:03:01.2]} 14... f5 {[%clk 0:02:39.4]} 15. Nd2 {[%clk 0:02:57.6]} 15...
Nf6 {[%clk 0:02:36.6]} 16. c5 {[%clk 0:02:53.2]} 16... fxe4 {[%clk 0:02:16.5]}
17. Ndxe4 {[%clk 0:02:51.8]} 17... Nf5 {[%clk 0:02:16.8]} 18. cxd6 {[%clk
0:02:51]} 18... cxd6 {[%clk 0:02:13]} 19. Nxf6+ {[%clk 0:02:50.9]} 19... Bxf6
{[%clk 0:02:09.5]} 20. Ne4 {[%clk 0:02:52.8]} 20... Be7 {[%clk 0:02:10.2]} 21.
Bg4 {[%clk 0:02:43.3]} 21... Kg7 {[%clk 0:02:05.9]} 22. Rc1 {[%clk 0:02:41.1]}
22... h5 {[%clk 0:02:03.9]} 23. Bh3 {[%clk 0:02:40.4]} 23... Bd7 {[%clk
0:02:00.5]} 24. f4 {[%clk 0:02:39.8]} 24... Ne3 {[%clk 0:01:52]} 25. Qb3 {[%clk
0:02:24.6]} 25... Nxf1 {[%clk 0:01:49.9]} 26. fxe5 {[%clk 0:02:22.3]} 26... Bxh3
{[%clk 0:01:36.7]} 27. exd6 {[%clk 0:02:18.1]} 27... Bg5 {[%clk 0:01:20.9]} 28.
Rc7+ {[%clk 0:02:16.5]} 28... Rf7 {[%clk 0:01:01]} 29. Bc3+ {[%clk 0:01:57.3]}
29... Kg8 {[%clk 0:01:00.3]} 30. Qxb7 {[%clk 0:01:56.8]} 30... Be3+ {[%clk
0:00:56.9]} 31. Kh1 {[%clk 0:01:57]} 31... Bd7 {[%clk 0:00:47]} 32. Nf6+ {[%clk
0:01:45.8]} 32... Rxf6 {[%clk 0:00:45.6]} 33. Rxd7 {[%clk 0:01:46]} 33... Ng3+
{[%clk 0:00:26.7]} 34. hxg3 {[%clk 0:01:45.5]} 34... Rf1+ {[%clk 0:00:27.9]} 35.
Kh2 {[%clk 0:01:47]} 35... Bg1+ {[%clk 0:00:28]} 36. Kh3 {[%clk 0:01:47.4]}
36... Qc8 {[%clk 0:00:29.5]} 37. Qxc8+ {[%clk 0:01:22.8]} 37... Rxc8 {[%clk
0:00:29.7]} 38. Rg7+ {[%clk 0:01:24.7]} 38... Kf8 {[%clk 0:00:28.8]} 39. d7
{[%clk 0:01:24.5]} 39... Rd8 {[%clk 0:00:20.2]} 40. Rh7 {[%clk 0:01:15.1]} 40...
Bd4 {[%clk 0:00:20.9]} 41. Bb4+ {[%clk 0:01:11.5]} 41... Kg8 {[%clk 0:00:20.9]}
0-1